fUST/lending_fUST_20250518
["ID","MTS","AMOUNT","RATE_DAILY","PERIOD"]
[361351580,1747507847900,-450.0,0.00014109,2]
[361351581,1747507847909,-271.50128068,0.00014109,2]
[361351582,1747507847919,-450.0,0.00014109,2]
[361351583,1747507847928,-351.23,0.00014109,2]
[361351584,1747507847937,-450.0,0.00014109,2]
[361351585,1747507847947,-450.0,0.00014109,2]
[361351586,1747507847956,-500.0,0.00014109,2]
[361351587,1747507847966,-450.0,0.00014109,2]
[361351588,1747507847975,-450.0,0.00014109,2]
[361351589,1747507847984,-450.0,0.00014109,2]
[361351590,1747507847994,-450.0,0.00014109,2]
[361351591,1747507848003,-450.0,0.00014109,2]
[361351592,1747507848013,-500.0,0.00014109,2]
[361351593,1747507848022,-259.81731209,0.00014109,2]
[361351594,1747507848032,-218.30236844,0.00014109,2]
[361351595,1747507848041,-450.0,0.00014109,2]
[361351596,1747507848051,-352.94,0.00014109,2]
[361351597,1747507848063,-370.54,0.00014109,2]
[361351598,1747507848073,-450.0,0.00014109,2]
[361351599,1747507848084,-450.0,0.00014109,2]
[361351600,1747507848094,-540.178077,0.00014109,2]
[361351601,1747507848106,-450.0,0.00014109,2]
[361351602,1747507848116,-450.0,0.00014109,2]
[361351603,1747507848125,-540.178077,0.00014109,2]
[361351604,1747507848137,-150.0,0.00014109,2]
[361351605,1747507848147,-450.0,0.00014109,2]
[361351606,1747507848156,-450.0,0.00014109,2]
[361351607,1747507848166,-450.0,0.00014109,2]
[361351608,1747507848176,-450.0,0.00014109,2]
[361351609,1747507848186,-450.0,0.00014109,2]
[361351610,1747507848196,-221.48,0.00014109,2]
[361351611,1747507848206,-450.0,0.00014109,2]
[361351612,1747507848216,-238.456746,0.00014109,2]
[361351613,1747507848226,-200.0,0.00014109,2]
[361351614,1747507848235,-238.456746,0.00014109,2]
[361351615,1747507848245,-450.0,0.00014109,2]
[361351616,1747507848255,-238.456746,0.00014109,2]
[361351617,1747507848264,-238.456746,0.00014109,2]
[361351618,1747507848274,-287.83,0.00014109,2]
[361351619,1747507848283,-450.0,0.00014109,2]
[361351620,1747507848292,-450.0,0.00014109,2]
[361351621,1747507848302,-571.68,0.00014109,2]
[361351622,1747507848311,-450.0,0.00014109,2]
[361351623,1747507848322,-450.0,0.00014109,2]
[361351624,1747507848446,-450.0,0.00014109,2]
[361351625,1747507848457,-450.0,0.00014109,2]
[361351626,1747507848466,-450.0,0.00014109,2]
[361351627,1747507848476,-450.0,0.00014109,2]
[361351628,1747507848485,-203.57,0.00014109,2]
[361351629,1747507848494,-300.0,0.00014109,2]
[361351630,1747507848504,-450.0,0.00014109,2]
[361351631,1747507848514,-450.0,0.00014109,2]
[361351632,1747507848523,-300.0,0.00014109,2]
[361351633,1747507848533,-151.0,0.00014109,2]
[361351634,1747507848543,-396.20161224,0.00014109,2]
[361351635,1747507848554,-151.0,0.00014109,2]
[361351636,1747507848564,-400.0,0.00014109,2]
[361351637,1747507848573,-450.0,0.00014109,2]
[361351638,1747507848582,-350.0,0.00014109,2]
[361351639,1747507848592,-450.0,0.00014109,2]
[361351640,1747507848602,-151.0,0.00014109,2]
[361351641,1747507848612,-552.57964765,0.00014109,2]
[361351642,1747507848621,-450.0,0.00014109,2]
[361351643,1747507848630,-450.0,0.00014109,2]
[361351644,1747507848640,-450.0,0.00014109,2]
[361351645,1747507848649,-450.0,0.00014109,2]
[361351646,1747507848658,-605.224144,0.00014109,2]
[361351647,1747507848667,-605.224144,0.00014109,2]
[361351648,1747507848677,-400.0,0.00014109,2]
[361351649,1747507848686,-605.224144,0.00014109,2]
[361351650,1747507848696,-605.224148,0.00014109,2]
[361351651,1747507848705,-450.0,0.00014109,2]
[361351652,1747507848714,-450.0,0.00014109,2]
[361351653,1747507848723,-341.84,0.00014109,2]
[361351654,1747507848733,-450.0,0.00014109,2]
[361351655,1747507848742,-450.0,0.00014109,2]
[361351656,1747507848751,-450.0,0.00014109,2]
[361351657,1747507848760,-450.0,0.00014109,2]
[361351658,1747507848769,-450.0,0.00014109,2]
[361351659,1747507848778,-836.01,0.00014109,2]
[361351660,1747507848787,-450.0,0.00014109,2]
[361351661,1747507848795,-503.97,0.00014109,2]
[361351662,1747507848804,-450.0,0.00014109,2]
[361351663,1747507848813,-450.0,0.00014109,2]
[361351664,1747507848823,-368.82629972,0.00014109,2]
[361351665,1747507848832,-450.0,0.00014109,2]
[361351666,1747507848841,-461.0,0.00014109,2]
[361351667,1747507848850,-450.0,0.00014109,2]
[361351668,1747507848859,-450.0,0.00014109,2]
[361351669,1747507848869,-450.0,0.00014109,2]
[361351670,1747507848878,-450.0,0.00014109,2]
[361351671,1747507848887,-1296.09,0.00014109,2]
[361351672,1747507848897,-466.87,0.00014109,2]
[361351673,1747507848906,-450.0,0.00014109,2]
[361351674,1747507848915,-425.99,0.00014109,2]
[361351675,1747507848924,-153.1782572,0.00014109,2]
[361351676,1747507848933,-450.0,0.00014109,2]
[361351677,1747507848942,-450.0,0.00014109,2]
[361351678,1747507848952,-523.95,0.00014109,2]
[361351679,1747507848961,-450.0,0.00014109,2]
[361351680,1747507848970,-450.0,0.00014109,2]
[361351681,1747507848980,-450.0,0.00014109,2]
[361351682,1747507848990,-460.38,0.00014109,2]
[361351683,1747507848999,-450.0,0.00014109,2]
[361351684,1747507849009,-450.0,0.00014109,2]
[361351685,1747507849018,-450.0,0.00014109,2]
[361351686,1747507849028,-450.0,0.00014109,2]
[361351687,1747507849038,-220.94,0.00014109,2]
[361351688,1747507849048,-450.0,0.00014109,2]
[361351689,1747507849059,-450.0,0.00014109,2]
[361351690,1747507849069,-369.54,0.00014109,2]
[361351691,1747507849078,-450.0,0.00014109,2]
[361351692,1747507849087,-450.0,0.00014109,2]
[361351693,1747507849096,-450.0,0.00014109,2]
[361351694,1747507849106,-302.85,0.00014109,2]
[361351695,1747507849116,-194.5,0.00014109,2]
[361351696,1747507849125,-450.0,0.00014109,2]
[361351697,1747507849134,-168.79,0.00014109,2]
[361351698,1747507849143,-450.0,0.00014109,2]
[361351699,1747507849152,-1230.55,0.00014109,2]
[361351700,1747507849164,-250.75,0.00014109,2]
[361351701,1747507849174,-450.0,0.00014109,2]
[361351702,1747507849183,-450.0,0.00014109,2]
[361351703,1747507849193,-450.0,0.00014109,2]
[361351704,1747507849202,-450.0,0.00014109,2]
[361351705,1747507849211,-450.0,0.00014109,2]
[361351706,1747507849220,-450.0,0.00014109,2]
[361351707,1747507849230,-450.0,0.00014109,2]
[361351708,1747507849239,-450.0,0.00014109,2]
[361351709,1747507849247,-450.0,0.00014109,2]
[361351710,1747507849257,-450.0,0.00014109,2]
[361351711,1747507849266,-450.0,0.00014109,2]
[361351712,1747507849275,-450.0,0.00014109,2]
[361351713,1747507849284,-254.816323,0.00014109,2]
[361351714,1747507849294,-254.816323,0.00014109,2]
[361351715,1747507849303,-528.14,0.00014109,2]
[361351716,1747507849312,-450.0,0.00014109,2]
[361351717,1747507849321,-450.0,0.00014109,2]
[361351718,1747507849331,-450.0,0.00014109,2]
[361351719,1747507849340,-450.0,0.00014109,2]
[361351720,1747507849350,-450.0,0.00014109,2]
[361351721,1747507849360,-450.0,0.00014109,2]
[361351722,1747507849369,-250.0,0.00014109,2]
[361351723,1747507849378,-450.0,0.00014109,2]
[361351724,1747507849388,-450.0,0.00014109,2]
[361351725,1747507849397,-450.0,0.00014109,2]
[361351726,1747507849406,-2645.51,0.00014109,2]
[361351727,1747507849415,-450.0,0.00014109,2]
[361351728,1747507849425,-450.0,0.00014109,2]
[361351729,1747507849434,-450.0,0.00014109,2]
[361351730,1747507849443,-450.0,0.00014109,2]
[361351731,1747507849453,-450.0,0.00014109,2]
[361351732,1747507849462,-503.96,0.00014109,2]
[361351733,1747507849471,-450.0,0.00014109,2]
[361351734,1747507849480,-523.66,0.00014109,2]
[361351735,1747507849490,-450.0,0.00014109,2]
[361351736,1747507849499,-450.0,0.00014109,2]
[361351737,1747507849508,-1381.86,0.00014109,2]
[361351738,1747507849518,-2925.94,0.00014109,2]
[361351739,1747507849527,-450.0,0.00014109,2]
[361351740,1747507849536,-450.0,0.00014109,2]
[361351741,1747507849545,-450.0,0.00014109,2]
[361351742,1747507849556,-525.0,0.00014109,2]
[361351743,1747507849565,-450.0,0.00014109,2]
[361351744,1747507849575,-550.0,0.00014109,2]
[361351745,1747507849584,-652.38,0.00014109,2]
[361351746,1747507849594,-450.0,0.00014109,2]
[361351747,1747507849603,-450.0,0.00014109,2]
[361351748,1747507849612,-450.0,0.00014109,2]
[361351749,1747507849622,-450.0,0.00014109,2]
[361351750,1747507849631,-468.75,0.00014109,2]
[361351751,1747507849640,-450.0,0.00014109,2]
[361351752,1747507849649,-450.0,0.00014109,2]
[361351753,1747507849658,-450.0,0.00014109,2]
[361351754,1747507849671,-450.0,0.00014109,2]
[361351755,1747507849680,-450.0,0.00014109,2]
[361351756,1747507849689,-582.85,0.00014109,2]
[361351757,1747507849698,-174.29,0.00014109,2]
[361351758,1747507849707,-585.66,0.00014109,2]
[361351759,1747507849716,-450.0,0.00014109,2]
[361351760,1747507849725,-450.0,0.00014109,2]
[361351761,1747507849734,-450.0,0.00014109,2]
[361351762,1747507849743,-474.44,0.00014109,2]
[361351763,1747507849752,-450.0,0.00014109,2]
[361351764,1747507849761,-450.0,0.00014109,2]
[361351765,1747507849771,-450.0,0.00014109,2]
[361351766,1747507849779,-450.0,0.00014109,2]
[361351767,1747507849789,-1191.07,0.00014109,2]
[361351768,1747507849798,-300.17,0.00014109,2]
[361351769,1747507849807,-369.21,0.00014109,2]
[361351770,1747507849816,-450.0,0.00014109,2]
[361351771,1747507849825,-450.0,0.00014109,2]
[361351772,1747507849834,-300.0,0.00014109,2]
[361351773,1747507849843,-450.0,0.00014109,2]
[361351774,1747507849854,-450.0,0.00014109,2]
[361351775,1747507849863,-273.78421704,0.00014109,2]
[361351776,1747507849872,-428.81,0.00014109,2]
[361351777,1747507849880,-450.0,0.00014109,2]
[361351778,1747507849889,-561.25,0.00014109,2]
[361351779,1747507849898,-450.0,0.00014109,2]
[361351780,1747507849907,-152.88,0.00014109,2]
[361351781,1747507849916,-450.0,0.00014109,2]
[361351782,1747507849926,-450.0,0.00014109,2]
[361351783,1747507849935,-450.0,0.00014109,2]
[361351784,1747507849943,-706.83,0.00014109,2]
[361351785,1747507849953,-151.0,0.000142,2]
[361351786,1747507849962,-2026.53223721,0.00014245,2]
[361351787,1747507849971,-151.0,0.00014246,2]
[361351788,1747507849981,-151.0,0.00014246,2]
[361351789,1747507849990,-450.0,0.00014246,2]
[361351790,1747507849999,-450.0,0.00014246,2]
[361351791,1747507850008,-212.25,0.00014246,2]
[361351792,1747507850018,-450.0,0.00014246,2]
[361351793,1747507850027,-450.0,0.00014246,2]
[361351794,1747507850036,-450.0,0.00014246,2]
[361351795,1747507850045,-450.0,0.00014246,2]
[361351796,1747507850054,-156.71,0.00014246,2]
[361351797,1747507850066,-450.0,0.00014246,2]
[361351798,1747507850075,-450.0,0.00014246,2]
[361351799,1747507850084,-450.0,0.00014246,2]
[361351800,1747507850093,-450.0,0.00014246,2]
[361351801,1747507850104,-450.0,0.00014246,2]
[361351802,1747507850113,-450.0,0.00014246,2]
[361351803,1747507850123,-450.0,0.00014246,2]
[361351804,1747507850132,-450.0,0.00014246,2]
[361351805,1747507850141,-544.55,0.00014246,2]
[361351806,1747507850150,-450.0,0.00014246,2]
[361351807,1747507850159,-450.0,0.00014246,2]
[361351808,1747507850168,-225.42,0.00014246,2]
[361351809,1747507850177,-500.0,0.00014246,2]
[361351810,1747507850187,-216.11393617,0.00014246,2]
[361351811,1747507850198,-450.0,0.00014246,2]
[361351812,1747507850207,-450.0,0.00014246,2]
[361351813,1747507850216,-450.0,0.00014246,2]
[361351814,1747507850227,-450.0,0.00014246,2]
[361351815,1747507850235,-450.0,0.00014246,2]
[361351816,1747507850245,-450.0,0.00014246,2]
[361351817,1747507850254,-451.84929755,0.00014246,2]
[361351818,1747507850263,-450.0,0.00014246,2]
[361351819,1747507850272,-450.0,0.00014246,2]
[361351820,1747507850281,-450.0,0.00014246,2]
[361351821,1747507850290,-450.0,0.00014246,2]
[361351822,1747507850299,-450.0,0.00014246,2]
[361351823,1747507850308,-450.0,0.00014246,2]
[361351824,1747507850317,-450.0,0.00014246,2]
[361351825,1747507850327,-426.59,0.00014246,2]
[361351826,1747507850336,-450.0,0.00014246,2]
[361351827,1747507850346,-450.0,0.00014246,2]
[361351828,1747507850356,-450.0,0.00014246,2]
[361351829,1747507850365,-540.178077,0.00014246,2]
[361351830,1747507850375,-150.0,0.00014246,2]
[361351831,1747507850385,-450.0,0.00014246,2]
[361351832,1747507850395,-540.178073,0.00014246,2]
[361351833,1747507850404,-450.0,0.00014246,2]
[361351834,1747507850413,-450.0,0.00014246,2]
[361351835,1747507850422,-450.0,0.00014246,2]
[361351836,1747507850431,-450.0,0.00014246,2]
[361351837,1747507850440,-450.0,0.00014246,2]
[361351838,1747507850450,-450.0,0.00014246,2]
[361351839,1747507850459,-238.456746,0.00014246,2]
[361351840,1747507850467,-450.0,0.00014246,2]
[361351841,1747507850476,-238.456748,0.00014246,2]
[361351842,1747507850486,-580.41,0.00014246,2]
[361351843,1747507850495,-450.0,0.00014246,2]
[361351844,1747507850504,-450.0,0.00014246,2]
[361351845,1747507850513,-450.0,0.00014246,2]
[361351846,1747507850522,-450.0,0.00014246,2]
[361351847,1747507850531,-450.0,0.00014246,2]
[361351848,1747507850540,-291.18,0.00014246,2]
[361351849,1747507850549,-450.0,0.00014246,2]
[361351850,1747507850559,-450.0,0.00014246,2]
[361351851,1747507850568,-450.0,0.00014246,2]
[361351852,1747507850578,-450.0,0.00014246,2]
[361351853,1747507850587,-450.0,0.00014246,2]
[361351854,1747507850596,-151.0,0.00014246,2]
[361351855,1747507850605,-450.0,0.00014246,2]
[361351856,1747507850614,-237.77,0.00014246,2]
[361351857,1747507850623,-450.0,0.00014246,2]
[361351858,1747507850633,-450.0,0.00014246,2]
[361351859,1747507850642,-450.0,0.00014246,2]
[361351860,1747507850651,-450.0,0.00014246,2]
[361351861,1747507850660,-450.0,0.00014246,2]
[361351862,1747507850668,-169.24,0.00014246,2]
[361351863,1747507850677,-292.31,0.00014246,2]
[361351864,1747507850686,-450.0,0.00014246,2]
[361351865,1747507850695,-450.0,0.00014246,2]
[361351866,1747507850704,-836.01,0.00014246,2]
[361351867,1747507850713,-450.0,0.00014246,2]
[361351868,1747507850722,-503.97,0.00014246,2]
[361351869,1747507850731,-177.81,0.00014246,2]
[361351870,1747507850740,-450.0,0.00014246,2]
[361351871,1747507850749,-318.76,0.00014246,2]
[361351872,1747507850758,-450.0,0.00014246,2]
[361351873,1747507850767,-450.0,0.00014246,2]
[361351874,1747507850776,-450.0,0.00014246,2]
[361351875,1747507850785,-1296.09,0.00014246,2]
[361351876,1747507850795,-466.87,0.00014246,2]
[361351877,1747507850804,-301.23321348,0.00014246,2]
[361351878,1747507850813,-272.8,0.00014246,2]
[361351879,1747507850928,-193.980128,0.00014246,2]
[361351880,1747507850939,-450.0,0.00014246,2]
[361351881,1747507850948,-450.0,0.00014246,2]
[361351882,1747507850958,-450.0,0.00014246,2]
[361351883,1747507850967,-450.0,0.00014246,2]
[361351884,1747507850977,-460.38,0.00014246,2]
[361351885,1747507850988,-450.0,0.00014246,2]
[361351886,1747507850998,-450.0,0.00014246,2]
[361351887,1747507851007,-192.1,0.00014246,2]
[361351888,1747507851016,-450.0,0.00014246,2]
[361351889,1747507851026,-450.0,0.00014246,2]
[361351890,1747507851036,-450.0,0.00014246,2]
[361351891,1747507851045,-450.0,0.00014246,2]
[361351892,1747507851054,-450.0,0.00014246,2]
[361351893,1747507851069,-450.0,0.00014246,2]
[361351894,1747507851078,-450.0,0.00014246,2]
[361351895,1747507851087,-450.0,0.00014246,2]
[361351896,1747507851096,-1230.55,0.00014246,2]
[361351897,1747507851107,-450.0,0.00014246,2]
[361351898,1747507851116,-450.0,0.00014246,2]
[361351899,1747507851125,-450.0,0.00014246,2]
[361351900,1747507851135,-450.0,0.00014246,2]
[361351901,1747507851144,-450.0,0.00014246,2]
[361351902,1747507851154,-450.0,0.00014246,2]
[361351903,1747507851163,-450.0,0.00014246,2]
[361351904,1747507851172,-424.22,0.00014246,2]
[361351905,1747507851182,-450.0,0.00014246,2]
[361351906,1747507851191,-450.0,0.00014246,2]
[361351907,1747507851200,-450.0,0.00014246,2]
[361351908,1747507851209,-450.0,0.00014246,2]
[361351909,1747507851219,-254.816323,0.00014246,2]
[361351910,1747507851228,-254.816323,0.00014246,2]
[361351911,1747507851238,-528.14,0.00014246,2]
[361351912,1747507851247,-450.0,0.00014246,2]
[361351913,1747507851256,-489.46929117,0.00014246,2]
[361351914,1747507851266,-450.0,0.00014246,2]
[361351915,1747507851275,-150.0,0.00014246,2]
[361351916,1747507851284,-150.0,0.00014246,2]
[361351917,1747507851294,-450.0,0.00014246,2]
[361351918,1747507851303,-450.0,0.00014246,2]
[361351919,1747507851313,-356.97,0.00014246,2]
[361351920,1747507851323,-200.0,0.00014246,2]
[361351921,1747507851332,-2645.51,0.00014246,2]
[361351922,1747507851341,-200.0,0.00014246,2]
[361351923,1747507851352,-450.0,0.00014246,2]
[361351924,1747507851362,-150.0,0.00014246,2]
[361351925,1747507851372,-482.51,0.00014246,2]
[361351926,1747507851381,-450.0,0.00014246,2]
[361351927,1747507851391,-523.66,0.00014246,2]
[361351928,1747507851400,-150.0,0.00014246,2]
[361351929,1747507851409,-450.0,0.00014246,2]
[361351930,1747507851419,-1381.86,0.00014246,2]
[361351931,1747507851429,-2925.94,0.00014246,2]
[361351932,1747507851439,-450.0,0.00014246,2]
[361351933,1747507851448,-450.0,0.00014246,2]
[361351934,1747507851458,-450.0,0.00014246,2]
[361351935,1747507851468,-525.0,0.00014246,2]
[361351936,1747507851477,-450.0,0.00014246,2]
[361351937,1747507851487,-652.38,0.00014246,2]
[361351938,1747507851496,-450.0,0.00014246,2]
[361351939,1747507851506,-504.77,0.00014246,2]
[361351940,1747507851515,-450.0,0.00014246,2]
[361351941,1747507851525,-468.75,0.00014246,2]
[361351942,1747507851534,-450.0,0.00014246,2]
[361351943,1747507851544,-450.0,0.00014246,2]
[361351944,1747507851553,-450.0,0.00014246,2]
[361351945,1747507851563,-450.0,0.00014246,2]
[361351946,1747507851572,-450.0,0.00014246,2]
[361351947,1747507851581,-585.66,0.00014246,2]
[361351948,1747507851590,-237.01,0.00014246,2]
[361351949,1747507851600,-450.0,0.00014246,2]
[361351950,1747507851610,-450.0,0.00014246,2]
[361351951,1747507851619,-474.44,0.00014246,2]
[361351952,1747507851628,-450.0,0.00014246,2]
[361351953,1747507851636,-450.0,0.00014246,2]
[361351954,1747507851645,-200.0,0.00014246,2]
[361351955,1747507851655,-450.0,0.00014246,2]
[361351956,1747507851665,-1191.07,0.00014246,2]
[361351957,1747507851673,-450.0,0.00014246,2]
[361351958,1747507851683,-450.0,0.00014246,2]
[361351959,1747507851692,-450.0,0.00014246,2]
[361351960,1747507851701,-450.0,0.00014246,2]
[361351961,1747507851710,-450.0,0.00014246,2]
[361351962,1747507851720,-450.0,0.00014246,2]
[361351963,1747507851729,-450.0,0.00014246,2]
[361351964,1747507851738,-450.0,0.00014246,2]
[361351965,1747507851748,-450.0,0.00014246,2]
[361351966,1747507851763,-706.83,0.00014246,2]
[361351967,1747507851774,-151.0,0.000143,2]
[361351968,1747507851783,-450.0,0.00014383,2]
[361351969,1747507851793,-450.0,0.00014383,2]
[361351970,1747507851802,-224.0,0.00014383,2]
[361351971,1747507851811,-450.0,0.00014383,2]
[361351972,1747507851821,-231.77,0.00014383,2]
[361351973,1747507851830,-450.0,0.00014383,2]
[361351974,1747507851840,-450.0,0.00014383,2]
[361351975,1747507851850,-450.0,0.00014383,2]
[361351976,1747507851859,-450.0,0.00014383,2]
[361351977,1747507851868,-450.0,0.00014383,2]
[361351978,1747507851878,-450.0,0.00014383,2]
[361351979,1747507851887,-450.0,0.00014383,2]
[361351980,1747507851897,-450.0,0.00014383,2]
[361351981,1747507851906,-469.93,0.00014383,2]
[361351982,1747507851915,-257.84,0.00014383,2]
[361351983,1747507851924,-450.0,0.00014383,2]
[361351984,1747507851934,-450.0,0.00014383,2]
[361351985,1747507851943,-450.0,0.00014383,2]
[361351986,1747507851953,-450.0,0.00014383,2]
[361351987,1747507851963,-450.0,0.00014383,2]
[361351988,1747507851972,-450.0,0.00014383,2]
[361351989,1747507851981,-450.0,0.00014383,2]
[361351990,1747507851990,-450.0,0.00014383,2]
[361351991,1747507851999,-450.0,0.00014383,2]
[361351992,1747507852009,-552.99,0.00014383,2]
[361351993,1747507852018,-189.6,0.00014383,2]
[361351994,1747507852027,-450.0,0.00014383,2]
[361351995,1747507852035,-450.0,0.00014383,2]
[361351996,1747507852045,-450.0,0.00014383,2]
[361351997,1747507852054,-389.43,0.00014383,2]
[361351998,1747507852068,-450.0,0.00014383,2]
[361351999,1747507852078,-450.0,0.00014383,2]
[361352000,1747507852087,-450.0,0.00014383,2]
[361352001,1747507852096,-586.91,0.00014383,2]
[361352002,1747507852106,-450.0,0.00014383,2]
[361352003,1747507852115,-450.0,0.00014383,2]
[361352004,1747507852124,-593.36,0.00014383,2]
[361352005,1747507852133,-450.0,0.00014383,2]
[361352006,1747507852142,-450.0,0.00014383,2]
[361352007,1747507852152,-450.0,0.00014383,2]
[361352008,1747507852162,-450.0,0.00014383,2]
[361352009,1747507852171,-450.0,0.00014383,2]
[361352010,1747507852181,-450.0,0.00014383,2]
[361352011,1747507852190,-450.0,0.00014383,2]
[361352012,1747507852200,-450.0,0.00014383,2]
[361352013,1747507852209,-300.0,0.00014383,2]
[361352014,1747507852219,-192.77,0.00014383,2]
[361352015,1747507852229,-492.66,0.00014383,2]
[361352016,1747507852238,-450.0,0.00014383,2]
[361352017,1747507852247,-312.27,0.00014383,2]
[361352018,1747507852257,-450.0,0.00014383,2]
[361352019,1747507852266,-450.0,0.00014383,2]
[361352020,1747507852276,-450.0,0.00014383,2]
[361352021,1747507852286,-450.0,0.00014383,2]
[361352022,1747507852296,-450.0,0.00014383,2]
[361352023,1747507852306,-450.0,0.00014383,2]
[361352024,1747507852315,-450.0,0.00014383,2]
[361352025,1747507852324,-450.0,0.00014383,2]
[361352026,1747507852333,-836.01,0.00014383,2]
[361352027,1747507852342,-450.0,0.00014383,2]
[361352028,1747507852352,-503.97,0.00014383,2]
[361352029,1747507852362,-450.0,0.00014383,2]
[361352030,1747507852371,-450.0,0.00014383,2]
[361352031,1747507852380,-450.0,0.00014383,2]
[361352032,1747507852389,-450.0,0.00014383,2]
[361352033,1747507852399,-466.87,0.00014383,2]
[361352034,1747507852408,-1296.09,0.00014383,2]
[361352035,1747507852418,-217.67,0.00014383,2]
[361352036,1747507852428,-450.0,0.00014383,2]
[361352037,1747507852437,-450.0,0.00014383,2]
[361352038,1747507852448,-450.0,0.00014383,2]
[361352039,1747507852459,-460.38,0.00014383,2]
[361352040,1747507852469,-450.0,0.00014383,2]
[361352041,1747507852478,-450.0,0.00014383,2]
[361352042,1747507852488,-450.0,0.00014383,2]
[361352043,1747507852497,-450.0,0.00014383,2]
[361352044,1747507852507,-450.0,0.00014383,2]
[361352045,1747507852518,-150.0,0.00014383,2]
[361352046,1747507852527,-450.0,0.00014383,2]
[361352047,1747507852537,-450.0,0.00014383,2]
[361352048,1747507852548,-300.0,0.00014383,2]
[361352049,1747507852559,-450.0,0.00014383,2]
[361352050,1747507852569,-1230.55,0.00014383,2]
[361352051,1747507852579,-450.0,0.00014383,2]
[361352052,1747507852590,-450.0,0.00014383,2]
[361352053,1747507852600,-584.03,0.00014383,2]
[361352054,1747507852610,-450.0,0.00014383,2]
[361352055,1747507852619,-450.0,0.00014383,2]
[361352056,1747507852628,-450.0,0.00014383,2]
[361352057,1747507852638,-175.03,0.00014383,2]
[361352058,1747507852647,-450.0,0.00014383,2]
[361352059,1747507852656,-450.0,0.00014383,2]
[361352060,1747507852666,-450.0,0.00014383,2]
[361352061,1747507852675,-450.0,0.00014383,2]
[361352062,1747507852684,-528.14,0.00014383,2]
[361352063,1747507852693,-450.0,0.00014383,2]
[361352064,1747507852702,-450.0,0.00014383,2]
[361352065,1747507852712,-450.0,0.00014383,2]
[361352066,1747507852722,-450.0,0.00014383,2]
[361352067,1747507852731,-2645.51,0.00014383,2]
[361352068,1747507852740,-450.0,0.00014383,2]
[361352069,1747507852749,-450.0,0.00014383,2]
[361352070,1747507852758,-523.66,0.00014383,2]
[361352071,1747507852767,-450.0,0.00014383,2]
[361352073,1747507852777,-1381.86,0.00014383,2]
[361352074,1747507852786,-2925.94,0.00014383,2]
[361352075,1747507852795,-450.0,0.00014383,2]
[361352076,1747507852804,-150.0,0.00014383,2]
[361352077,1747507852814,-450.0,0.00014383,2]
[361352078,1747507852823,-525.0,0.00014383,2]
[361352079,1747507852831,-450.0,0.00014383,2]
[361352080,1747507852841,-652.38,0.00014383,2]